Workbook

Sheet Non-SDA
E1: AHDB Beef and Lamb
E2: Stocktake
E3: Costs of Production 2015/16
C5: Non-SDA Breeding Flocks
B7: (£ per head output) | F7: (£ per lwt kg lamb output)
A8: Financial Performance (£ per ewe to ram) | B8: Bottom Third | C8: Average | D8: Top Third | F8: Bottom Third | G8: Average | H8: Top Third
A10: Number of flocks in sample | B10: 29 | C10: 89 | D10: 29 | F10: =B10 -> 29 | G10: 89 | H10: 29
A11: Average flock size | B11: 372.7241379 | C11: 688.2808989 | D11: 986.0344828 | F11: 372.7241379 | G11: 688.2808989 | H11: 986.0344828
A13: Lamb output | B13: 89.44184384 | C13: 90.61947403 | D13: 91.39116499 | F13: =(B13/(B$63/100))/B$71 -> 1.632718813 | G13: =(C13/(C$63/100))/C$71 -> 1.716564897 | H13: =(D13/(D$63/100))/D$71 -> 1.81356844
A14: Other income | B14: 2.428048848 | C14: 3.078038592 | D14: 3.68293338 | F14: =(B14/(B$63/100))/B$71 -> 0.04432289031 | G14: =(C14/(C$63/100))/C$71 -> 0.05830593317 | H14: =(D14/(D$63/100))/D$71 -> 0.07308421712
A15: Gross Output | B15: 91.86989269 | C15: 93.69751262 | D15: 95.07409837 | F15: 1.677041703 | G15: 1.77487083 | H15: 1.886652657
A16: Replacement costs | B16: 7.809173204 | C16: 9.18189404 | D16: 9.528521974 | F16: 0.1425527858 | G16: 0.1739285861 | H16: 0.1890842155
A17: Output less replacement costs | B17: 84.06071949 | C17: 84.51561858 | D17: 85.54557639 | F17: 1.534488918 | G17: 1.600942244 | H17: 1.697568442
A19: Variable Costs
A20: Purchased feed including minerals | B20: 15.83312263 | C20: 8.075484793 | D20: 3.685381347 | F20: 0.2890262105 | G20: 0.1529703617 | H20: 0.07313279463
A21: Home-grown feed | B21: 0.4114164122 | C21: 0.3946448569 | D21: 0.3064784053 | F21: 0.0075102132 | G21: 0.007475584197 | H21: 0.006081764726
A22: Purchased forage | B22: 0.9294106763 | C22: 0.3485887327 | D22: 0.1130267529 | F22: 0.01696595498 | G22: 0.006603163264 | H22: 0.002242905559
A23: Home-grown forage (excludes contract) | B23: 8.697145589 | C23: 4.88036539 | D23: 3.458758021 | F23: 0.1587623042 | G23: 0.09244661814 | H23: 0.068635676
A24: Total feed and forage | B24: 25.87109531 | C24: 13.69908377 | D24: 7.563644526 | F24: 0.4722646829 | G24: 0.2594957273 | H24: 0.1500931409
A25: Vet and medicine | B25: 10.18577297 | C25: 7.137621007 | D25: 5.052202833 | F25: 0.1859364972 | G25: 0.1352048199 | H25: 0.1002560325
A26: Bedding | B26: 1.690822463 | C26: 0.7523097768 | D26: 0.3775534184 | F26: 0.03086516921 | G26: 0.01425067369 | H26: 0.007492178967
A27: Other livestock expenses | B27: 8.648252382 | C27: 7.998247384 | D27: 8.202717958 | F27: 0.1578697817 | G27: 0.1515072874 | H27: 0.1627749292
A28: Total variable costs | B28: 46.39594312 | C28: 29.58726194 | D28: 21.19611873 | F28: 0.846936131 | G28: 0.5604585083 | H28: 0.4206162816
A30: Gross Margin | B30: 37.66477637 | C30: 54.92835664 | D30: 64.34945766 | F30: 0.6875527865 | G30: 1.040483735 | H30: 1.27695216
A32: Fixed Costs
A33: Labour - paid | B33: 18.29445351 | C33: 10.6234024 | D33: 8.345333653 | F33: 0.3339566487 | G33: 0.2012344459 | H33: 0.1656049984
A34: Machinery repairs and spares | B34: 2.787727775 | C34: 2.179166231 | D34: 1.705238881 | F34: 0.05088866003 | G34: 0.04127898882 | H34: 0.03383880069
A35: Contracting | B35: 4.135243442 | C35: 2.657987733 | D35: 2.120167617 | F35: 0.07548692508 | G35: 0.05034909424 | H35: 0.04207265636
A36: Electricity | B36: 0.2892552503 | C36: 0.2363008309 | D36: 0.1379094247 | F36: 0.005280218616 | G36: 0.004476142857 | H36: 0.002736677887
A37: Fuel | B37: 3.774541627 | C37: 2.732640187 | D37: 2.311106336 | F37: 0.068902483 | G37: 0.05176320289 | H37: 0.04586164881
A38: Property maintenance and water | B38: 2.318907467 | C38: 1.56098749 | D38: 0.8999755289 | F38: 0.0423305657 | G38: 0.02956910045 | H38: 0.01785913569
A39: Land Rent (Actual) | B39: 10.86074113 | C39: 7.370045303 | D39: 6.077727047 | F39: 0.1982577237 | G39: 0.1396075313 | H39: 0.1206065593
A40: Overheads | B40: 5.808147376 | C40: 3.876995577 | D40: 2.966864917 | F40: 0.106025 | G40: 0.07344022444 | H40: 0.05887453761
A41: Cash Only fixed costs | B41: 48.26901757 | C41: 31.23752575 | D41: 24.56432341 | F41: 0.8811282247 | G41: 0.5917187309 | H41: 0.4874550148
A42: Cash Only Cost of Production | B42: 102.4741339 | C42: 70.00668173 | D42: 55.28896411 | F42: 1.870617142 | G42: 1.326105825 | H42: 1.097155512
A43: Cash Only Net Margin | B43: -10.60424121 | C43: 23.69083088 | D43: 39.78513425 | F43: -0.1935754382 | G43: 0.4487650045 | H43: 0.7894971453
A45: Depreciation | B45: 9.473676637 | C45: 6.110073606 | D45: 4.767524214 | F45: 0.1729375135 | G45: 0.1157404408 | H45: 0.09460686329
A46: Finance costs (Imputed) | B46: 1.7847143 | C46: 1.378884218 | D46: 1.142363718 | F46: 0.03257912055 | G46: 0.02611959815 | H46: 0.02266909265
A47: Labour - unpaid (Imputed) | B47: 17.02863827 | C47: 12.77693787 | D47: 9.084192189 | F47: 0.3108497866 | G47: 0.2420279224 | H47: 0.1802669247
A48: Land Rent (Imputed) | B48: 13.82276143 | C48: 9.769594937 | D48: 7.428333058 | F48: 0.2523280119 | G48: 0.1850611461 | H48: 0.1474080169
A49: Non-Cash fixed costs | B49: 42.10979064 | C49: 30.03549063 | D49: 22.42241318 | F49: 0.7686944325 | G49: 0.5689491074 | H49: 0.4449508976
A50: Full Investment fixed costs | B50: 90.37880822 | C50: 61.27301638 | D50: 46.98673658 | F50: 1.649822657 | G50: 1.160667838 | H50: 0.9324059124
A51: Full Investment Cost of Production | B51: 144.5839245 | C51: 100.0421724 | D51: 77.71137729 | F51: 2.639311574 | G51: 1.895054933 | H51: 1.542106409
A52: Full Investment Net Margin | B52: -52.71403185 | C52: -6.344659742 | D52: 17.36272107 | F52: -0.9622698707 | G52: -0.1201841029 | H52: 0.3445462477
A55: Physical Performance
A56: Ewe to ram ratio | B56: 40.84005062 | C56: 46.24565908 | D56: 51.14622144
A57: Scanning percentage per ewe scanned (%) | B57: 167.4900227 | C57: 169.509234 | D57: 167.0275262
A58: Lambs born alive per 100 ewes to ram | B58: 154.1585716 | C58: 150.7958274 | D58: 147.9734219
A59: Lambs born dead per 100 ewes to ram | B59: 6.714505382 | C59: 8.552654213 | D59: 9.281704745
A60: Lambs died in first 48 hours per 100 ewes to ram | B60: 9.108448416 | C60: 7.715088078 | D60: 7.182885137
A61: Lambs died after 48 hours per 100 ewes to ram | B61: 5.746770026 | C61: 5.095730557 | D61: 5.134257893
A62: Lambs weaned per 100 ewes to ram | B62: 140.8323225 | C62: 139.002894 | D62: 136.3560063
A63: Lambs reared per 100 ewes to ram | B63: 140.7160699 | C63: 138.7221052 | D63: 135.9783179
A64: Lamb losses from birth to rearing (% of born alive) | B64: 8.719918382 | C64: 8.006668615 | D64: 8.106255761
A65: Empty ewes (%) | B65: 5.412156536 | C65: 6.027066294 | D65: 7.16558839
A66: Ewe mortality (%) | B66: 3.959663244 | C66: 3.281257652 | D66: 3.290785102
A67: Flock replacement rate (%) | B67: 23.12887409 | C67: 22.87575298 | D67: 23.86780906
A69: Average age at weaning (days) | B69: 111.1876849 | C69: 116.4223586 | D69: 118.3912441
A70: Average weight at weaning (kg) | B70: 34.53869925 | C70: 32.74338581 | D70: 31.00835158
A71: Average liveweight per reared lamb (all lambs) (kg per lamb) | B71: 38.93011167 | C71: 38.05534286 | D71: 37.05958907
A72: Average liveweight (kg lwt per lamb sold finished) | B72: 42.25619936 | C72: 41.92421504 | D72: 41.54965346
A73: Average carcase weight (kg dwt per lamb sold finished) | B73: 19.60658815 | C73: 19.42985242 | D73: 19.15803889
A74: Average store weight (kg lwt per lamb sold store) | B74: 32.73379017 | C74: 32.67006733 | D74: 31.12495559
A75: Average age at sale (days) | B75: 150.1059479 | C75: 161.0036964 | D75: 169.2476288
A76: Daily liveweight gain to sale (kg per day) | B76: 0.2538901362 | C76: 0.2295336112 | D76: 0.2097878719
A77: Lamb weight produced per forage hectare (kg) | B77: 339.4412152 | C77: 399.7110684 | D77: 392.6677849
A79: Return per lamb sold finished (£) | B79: 69.99064674 | C79: 69.12875019 | D79: 71.09138502
A80: Return per lamb sold store (£) | B80: 49.91042394 | C80: 50.34676189 | D80: 49.46170937
A82: Reared lambs sold finished (%) | B82: 50.46673941 | C82: 40.1879159 | D82: 30.60049296
A83: Reared lambs sold store (%) | B83: 9.95961276 | C83: 9.566698001 | D83: 7.48550056
A84: Reared lambs sold breeding (%) | B84: 2.693536681 | C84: 4.588005853 | D84: 6.130722122
A85: Reared lambs valued at end (%) | B85: 36.88011115 | C85: 45.65738025 | D85: 55.78328435
A87: Total FW ewe concentrate use (kg per ewe) | B87: 41.8909242 | C87: 34.14693834 | D87: 26.16926035
A88: Total DM ewe concentrate use (kg per ewe) | B88: 36.38462205 | C88: 25.02678852 | D88: 15.34121358
A89: Average ewe concentrate cost (£ per tonne) | B89: 217.3749752 | C89: 178.7851634 | D89: 132.4762485
A90: Total FW forage (kg per ewe) | B90: 430.2951243 | C90: 235.0635846 | D90: 179.0907501
A91: Total DM forage (kg per ewe) | B91: 106.0533817 | C91: 60.44557361 | D91: 47.19349533
A92: Creep feed per lamb reared (kg per lamb) | B92: 16.4685732 | C92: 6.075514542 | D92: 2.016433898
A94: Number of full grazing weeks | B94: 45.39549375 | C94: 46.22603196 | D94: 47.77156539
A95: Stocking rate (LU per ha) | B95: 0.7116472499 | C95: 0.8526405687 | D95: 0.8644902139
A96: Inorganic nitrogen use (kg per ha) | B96: 44.79902546 | C96: 28.37550456 | D96: 20.41172888
A98: Labour use - paid hours per ewe | B98: 2.071230053 | C98: 1.113129238 | D98: 0.8271783526
A99: Labour use - unpaid hours per ewe | B99: 1.688591833 | C99: 1.357423192 | D99: 1.091812747

Sheet SDA
E1: AHDB Beef and Lamb
E2: Stocktake
E3: Costs of Production 2015/16
C5: SDA Breeding Flocks
B7: (£ per head output) | F7: (£ per lwt kg lamb output)
A8: Financial Performance (£ per ewe to ram) | B8: Bottom Third | C8: Average | D8: Top Third | F8: Bottom Third | G8: Average | H8: Top Third
A10: Number of flocks in sample | B10: 10 | C10: 30 | D10: 10 | F10: =B10 -> 10 | G10: 30 | H10: 10
A11: Average flock size | B11: 591.2 | C11: 813.5666667 | D11: 1090.9 | F11: 591.2 | G11: 813.5666667 | H11: 1090.9
A13: Lamb output | B13: 90.72281631 | C13: 88.94424488 | D13: 99.42890039 | F13: =(B13/(B$63/100))/B$71 -> 1.670102102 | G13: =(C13/(C$63/100))/C$71 -> 1.678246206 | H13: =(D13/(D$63/100))/D$71 -> 1.713909485
A14: Other income | B14: 1.97358931 | C14: 2.449775065 | D14: 2.677853149 | F14: =(B14/(B$63/100))/B$71 -> 0.03633149619 | G14: =(C14/(C$63/100))/C$71 -> 0.04622362822 | H14: =(D14/(D$63/100))/D$71 -> 0.04615959639
A15: Gross Output | B15: 92.69640562 | C15: 91.39401994 | D15: 102.1067535 | F15: 1.706433598 | G15: 1.724469834 | H15: 1.760069082
A16: Replacement costs | B16: 17.35314597 | C16: 14.7183599 | D16: 13.94481836 | F16: 0.3194513436 | G16: 0.2777136586 | H16: 0.2403743415
A17: Output less replacement costs | B17: 75.34325964 | C17: 76.67566004 | D17: 88.16193518 | F17: 1.386982254 | G17: 1.446756176 | H17: 1.51969474
A19: Variable Costs
A20: Purchased feed including minerals | B20: 13.22975474 | C20: 9.090703502 | D20: 8.55009262 | F20: 0.2435444808 | G20: 0.171528115 | H20: 0.1473825496
A21: Home-grown feed | B21: 1.167117727 | C21: 0.2827057811 | D21: 0 | F21: 0.02148528725 | G21: 0.005334239503 | H21: 0
A22: Purchased forage | B22: 0.4479482409 | C22: 0.2290830508 | D22: 0.1775561483 | F22: 0.008246208937 | G22: 0.004322457979 | H22: 0.003060630919
A23: Home-grown forage (excludes contract) | B23: 4.771197904 | C23: 4.239344917 | D23: 4.78590714 | F23: 0.08783223418 | G23: 0.07999016162 | H23: 0.08249725795
A24: Total feed and forage | B24: 19.61601861 | C24: 13.84183725 | D24: 13.51355591 | F24: 0.3611082111 | G24: 0.2611749741 | H24: 0.2329404384
A25: Vet and medicine | B25: 11.00649188 | C25: 8.126015487 | D25: 6.600444587 | F25: 0.2026167834 | G25: 0.1533258805 | H25: 0.1137754168
A26: Bedding | B26: 0.2877621786 | C26: 0.5919142049 | D26: 0.8151067926 | F26: 0.005297368831 | G26: 0.01116854463 | H26: 0.01405043461
A27: Other livestock expenses | B27: 7.806537551 | C27: 6.911501618 | D27: 6.888567238 | F27: 0.1437093259 | G27: 0.1304098021 | H27: 0.1187419421
A28: Total variable costs | B28: 38.71681022 | C28: 29.47126856 | D28: 27.81767453 | F28: 0.7127316893 | G28: 0.5560792013 | H28: 0.4795082319
A30: Gross Margin | B30: 36.62644943 | C30: 47.20439148 | D30: 60.34426065 | F30: 0.6742505652 | G30: 0.8906769743 | H30: 1.040186508
A32: Fixed Costs
A33: Labour - paid | B33: 7.512054071 | C33: 8.577373786 | D33: 8.371803085 | F33: 0.1382882257 | G33: 0.1618423433 | H33: 0.1443092769
A34: Machinery repairs and spares | B34: 3.273172052 | C34: 2.072820342 | D34: 1.821059781 | F34: 0.06025531113 | G34: 0.03911105075 | H34: 0.03139058785
A35: Contracting | B35: 3.48113867 | C35: 2.475133665 | D35: 1.936354448 | F35: 0.064083736 | G35: 0.04670210746 | H35: 0.03337798409
A36: Electricity | B36: 0.1173376184 | C36: 0.216810751 | D36: 0.2743606197 | F36: 0.002160049821 | G36: 0.004090897852 | H36: 0.004729301708
A37: Fuel | B37: 3.829655697 | C37: 2.774221072 | D37: 2.663766424 | F37: 0.07049953131 | G37: 0.05234544399 | H37: 0.04591677593
A38: Property maintenance and water | B38: 1.474912671 | C38: 0.8983489135 | D38: 0.8140798942 | F38: 0.02715143612 | G38: 0.01695051386 | H38: 0.01403273341
A39: Land Rent (Actual) | B39: 9.199476416 | C39: 4.985524204 | D39: 2.838515842 | F39: 0.169351719 | G39: 0.09406945994 | H39: 0.04892902573
A40: Overheads | B40: 3.699422383 | C40: 2.61645829 | D40: 2.513474678 | F40: 0.06810208665 | G40: 0.04936869388 | H40: 0.0433261162
A41: Cash Only fixed costs | B41: 32.58716958 | C41: 24.61669102 | D41: 21.23341477 | F41: 0.5998920957 | G41: 0.464480511 | H41: 0.3660118018
A42: Cash Only Cost of Production | B42: 88.65712577 | C42: 68.80631948 | D42: 62.99590766 | F42: 1.632075129 | G42: 1.298273371 | H42: 1.085894375
A43: Cash Only Net Margin | B43: 4.039279847 | C43: 22.58770046 | D43: 39.11084588 | F43: 0.07435846943 | G43: 0.4261964633 | H43: 0.6741747065
A45: Depreciation | B45: 9.905671073 | C45: 5.640061502 | D45: 4.151612494 | F45: 0.1823519458 | G45: 0.1064196096 | H45: 0.07156357965
A46: Finance costs (Imputed) | B46: 1.678230926 | C46: 0.957272405 | D46: 0.7527383863 | F46: 0.03089429001 | G46: 0.0180623129 | H46: 0.01297535681
A47: Labour - unpaid (Imputed) | B47: 27.01454017 | C47: 14.74807089 | D47: 11.96808899 | F47: 0.4973064347 | G47: 0.278274261 | H47: 0.2063003932
A48: Land Rent (Imputed) | B48: 5.174705484 | C48: 4.790013451 | D48: 4.631262689 | F48: 0.09526034196 | G48: 0.09038046151 | H48: 0.07983156829
A49: Non-Cash fixed costs | B49: 43.77314766 | C49: 26.13541824 | D49: 21.50370256 | F49: 0.8058130125 | G49: 0.493136645 | H49: 0.3706708979
A50: Full Investment fixed costs | B50: 76.36031724 | C50: 50.75210927 | D50: 42.73711733 | F50: 1.405705108 | G50: 0.9576171561 | H50: 0.7366826997
A51: Full Investment Cost of Production | B51: 132.4302734 | C51: 94.94173773 | D51: 84.49961022 | F51: 2.437888141 | G51: 1.791410016 | H51: 1.456565273
A52: Full Investment Net Margin | B52: -39.73386781 | C52: -3.547717787 | D52: 17.60714332 | F52: -0.731454543 | G52: -0.06694018173 | H52: 0.3035038085
A55: Physical Performance
A56: Ewe to ram ratio | B56: 41.22733612 | C56: 55.58203978 | D56: 66.60628931
A57: Scanning percentage per ewe scanned (%) | B57: 172.75 | C57: 164.4754777 | D57: 174.9267705
A58: Lambs born alive per 100 ewes to ram | B58: 150.4228687 | C58: 149.8504527 | D58: 160.4913374
A59: Lambs born dead per 100 ewes to ram | B59: 9.59377701 | C59: 7.737154689 | D59: 6.608217744
A60: Lambs died in first 48 hours per 100 ewes to ram | B60: 8.628691983 | C60: 9.353861686 | D60: 8.99727714
A61: Lambs died after 48 hours per 100 ewes to ram | B61: 4.186320755 | C61: 4.043715847 | D61: 4.034193161
A62: Lambs weaned per 100 ewes to ram | B62: 142.8450609 | C62: 140.0991519 | D62: 151.2604272
A63: Lambs reared per 100 ewes to ram | B63: 142.8450609 | C63: 139.8123489 | D63: 151.0587588
A64: Lamb losses from birth to rearing (% of born alive) | B64: 5.037670078 | C64: 6.698747744 | D64: 5.877313228
A65: Empty ewes (%) | B65: 5.226657645 | C65: 4.584750277 | D65: 3.428361903
A66: Ewe mortality (%) | B66: 5.311231394 | C66: 3.826771008 | D66: 3.098359153
A67: Flock replacement rate (%) | B67: 26.89445196 | C67: 26.25476298 | D67: 24.11770098
A69: Average age at weaning (days) | B69: 131.128952 | C69: 117.5426683 | D69: 113.4185807
A70: Average weight at weaning (kg) | B70: 32.1419775 | C70: 29.85037037 | D70: 30.4822738
A71: Average liveweight per reared lamb (all lambs) (kg per lamb) | B71: 38.02841918 | C71: 37.9067583 | D71: 38.40421056
A72: Average liveweight (kg lwt per lamb sold finished) | B72: 40.73695832 | C72: 41.45378207 | D72: 41.65580549
A73: Average carcase weight (kg dwt per lamb sold finished) | B73: 19.14987579 | C73: 19.45628834 | D73: 19.54970443
A74: Average store weight (kg lwt per lamb sold store) | B74: 31.83800623 | C74: 30.69487922 | D74: 32.20335336
A75: Average age at sale (days) | B75: 146.8645284 | C75: 147.5345419 | D75: 149.8815635
A76: Daily liveweight gain to sale (kg per day) | B76: 0.2490323055 | C76: 0.2457385036 | D76: 0.2407193475
A77: Lamb weight produced per forage hectare (kg) | B77: 412.9187939 | C77: 560.9654874 | D77: 727.3852763
A79: Return per lamb sold finished (£) | B79: 55.77154016 | C79: 63.27207174 | D79: 66.11219192
A80: Return per lamb sold store (£) | B80: 51.11214953 | C80: 45.72311161 | D80: 48.62595449
A82: Reared lambs sold finished (%) | B82: 39.079288 | C82: 42.56609148 | D82: 42.01784962
A83: Reared lambs sold store (%) | B83: 4.131233149 | C83: 9.391361018 | D83: 12.51669369
A84: Reared lambs sold breeding (%) | B84: 9.855504064 | C84: 7.090149063 | D84: 10.00349445
A85: Reared lambs valued at end (%) | B85: 46.93397479 | C85: 40.95239844 | D85: 35.46196224
A87: Total FW ewe concentrate use (kg per ewe) | B87: 63.66711773 | C87: 34.6138403 | D87: 28.56357131
A88: Total DM ewe concentrate use (kg per ewe) | B88: 46.41965494 | C88: 27.92860246 | D88: 24.81089005
A89: Average ewe concentrate cost (£ per tonne) | B89: 202.1172086 | C89: 225.0719898 | D89: 240.1152802
A90: Total FW forage (kg per ewe) | B90: 198.1562923 | C90: 171.9629614 | D90: 193.9132826
A91: Total DM forage (kg per ewe) | B91: 74.66847091 | C91: 60.25259147 | D91: 61.73526446
A92: Creep feed per lamb reared (kg per lamb) | B92: 7.341622262 | C92: 4.879849973 | D92: 3.992960738
A94: Number of full grazing weeks | B94: 48.96 | C94: 48.97232534 | D94: 48.81333824
A95: Stocking rate (LU per ha) | B95: 0.8897843921 | C95: 1.194865649 | D95: 1.449587935
A96: Inorganic nitrogen use (kg per ha) | B96: 21.7350267 | C96: 22.93764428 | D96: 32.33276043
A98: Labour use - paid hours per ewe | B98: 0.9410880983 | C98: 0.915372055 | D98: 0.8891956505
A99: Labour use - unpaid hours per ewe | B99: 2.788396027 | C99: 1.561850175 | D99: 1.285041248

Sheet Feb-March lambing
E1: AHDB Beef and Lamb
E2: Stocktake
E3: Costs of Production 2015/16
C5: Non-SDA Feb/March Lambing Flocks
B7: (£ per head output) | F7: (£ per lwt kg lamb output)
A8: Financial Performance (£ per ewe to ram) | B8: Bottom Third | C8: Average | D8: Top Third | F8: Bottom Third | G8: Average | H8: Top Third
A10: Number of flocks in sample | B10: 14 | C10: 44 | D10: 14 | F10: =B10 -> 14 | G10: 44 | H10: 14
A11: Average flock size | B11: 352.1428571 | C11: 562.9090909 | D11: 531.4285714 | F11: 352.1428571 | G11: 562.9090909 | H11: 531.4285714
A13: Lamb output | B13: 97.64190063 | C13: 95.34817788 | D13: 98.8140609 | F13: =(B13/(B$63/100))/B$71 -> 1.597308821 | G13: =(C13/(C$63/100))/C$71 -> 1.654147855 | H13: =(D13/(D$63/100))/D$71 -> 1.711337351
A14: Other income | B14: 2.133750507 | C14: 2.211935158 | D14: 2.204225806 | F14: =(B14/(B$63/100))/B$71 -> 0.03490569606 | G14: =(C14/(C$63/100))/C$71 -> 0.03837375689 | H14: =(D14/(D$63/100))/D$71 -> 0.03817446543
A15: Gross Output | B15: 99.77565114 | C15: 97.56011304 | D15: 101.0182867 | F15: 1.632214517 | G15: 1.692521612 | H15: 1.749511816
A16: Replacement costs | B16: 15.25175994 | C16: 10.72073681 | D16: 9.712451524 | F16: 0.249501193 | G16: 0.1859887016 | H16: 0.1682076509
A17: Output less replacement costs | B17: 84.52389119 | C17: 86.83937623 | D17: 91.30583519 | F17: 1.382713324 | G17: 1.506532911 | H17: 1.581304165
A19: Variable Costs
A20: Purchased feed including minerals | B20: 22.84712172 | C20: 14.09135115 | D20: 9.990728048 | F20: 0.3737525469 | G20: 0.2444638041 | H20: 0.1730270562
A21: Home-grown feed | B21: 0.4659229209 | C21: 0.4608571544 | D21: 0.2278225806 | F21: 0.007621961336 | G21: 0.007995180301 | H21: 0.003945605393
A22: Purchased forage | B22: 0.3748478702 | C22: 0.2210715439 | D22: 0.3698924731 | F22: 0.006132078602 | G22: 0.00383525966 | H22: 0.006406080261
A23: Home-grown forage (excludes contract) | B23: 7.466453736 | C23: 4.925346302 | D23: 2.817721461 | F23: 0.1221425672 | G23: 0.08544736987 | H23: 0.04879945159
A24: Total feed and forage | B24: 31.15434624 | C24: 19.69862615 | D24: 13.40616456 | F24: 0.5096491541 | G24: 0.3417416139 | H24: 0.2321781935
A25: Vet and medicine | B25: 10.20173225 | C25: 8.02761749 | D25: 5.682860215 | F25: 0.1668885674 | G25: 0.1392671213 | H25: 0.09842011205
A26: Bedding | B26: 2.493833671 | C26: 1.256086079 | D26: 0.7285134409 | F26: 0.04079624112 | G26: 0.02179120922 | H26: 0.01261695199
A27: Other livestock expenses | B27: 8.533876268 | C27: 7.270533753 | D27: 6.371866935 | F27: 0.1396043681 | G27: 0.1261328542 | H27: 0.1103528565
A28: Total variable costs | B28: 52.38378843 | C28: 36.25286347 | D28: 26.18940515 | F28: 0.8569383307 | G28: 0.6289327986 | H28: 0.453568114
A30: Gross Margin | B30: 32.14010276 | C30: 50.58651276 | D30: 65.11643003 | F30: 0.5257749932 | G30: 0.877600112 | H30: 1.127736051
A32: Fixed Costs
A33: Labour - paid | B33: 15.57568016 | C33: 10.1125969 | D33: 6.279489085 | F33: 0.254800154 | G33: 0.1754383864 | H33: 0.1087529863
A34: Machinery repairs and spares | B34: 3.294676151 | C34: 2.464165228 | D34: 2.411293658 | F34: 0.05389709995 | G34: 0.04274957024 | H34: 0.04176062457
A35: Contracting | B35: 4.89569 | C35: 3.060023245 | D35: 2.422253642 | F35: 0.08008783904 | G35: 0.05308681299 | H35: 0.04195043795
A36: Electricity | B36: 0.2893630832 | C36: 0.3912742248 | D36: 0.4063870968 | F36: 0.004733646131 | G36: 0.006788020854 | H36: 0.007038122017
A37: Fuel | B37: 3.877820146 | C37: 2.66370178 | D37: 2.829992188 | F37: 0.06343666279 | G37: 0.04621123009 | H37: 0.0490119654
A38: Property maintenance and water | B38: 3.298509349 | C38: 2.218933114 | D38: 1.556646596 | F38: 0.05395980665 | G38: 0.03849516093 | H38: 0.02695919425
A39: Land Rent (Actual) | B39: 3.412896338 | C39: 5.760039276 | D39: 6.376556236 | F39: 0.05583104579 | G39: 0.09992804086 | H39: 0.1104340694
A40: Overheads | B40: 5.974711194 | C40: 4.150321092 | D40: 4.212880257 | F40: 0.09773938064 | G40: 0.07200184509 | H40: 0.07296187681
A41: Cash Only fixed costs | B41: 40.61934642 | C41: 30.82105486 | D41: 26.49549876 | F41: 0.664485635 | G41: 0.5346990675 | H41: 0.4588692767
A42: Cash Only Cost of Production | B42: 108.2548948 | C42: 77.79465514 | D42: 62.39735544 | F42: 1.770925159 | G42: 1.349620568 | H42: 1.080645042
A43: Cash Only Net Margin | B43: -8.479243666 | C43: 19.7654579 | D43: 38.62093127 | F43: -0.1387106418 | G43: 0.3429010445 | H43: 0.6688667747
A45: Depreciation | B45: 12.09336726 | C45: 7.770623372 | D45: 7.146578287 | F45: 0.1978335332 | G45: 0.1348086589 | H45: 0.1237698992
A46: Finance costs (Imputed) | B46: 2.130341562 | C46: 1.774768915 | D46: 1.405667581 | F46: 0.03484992966 | G46: 0.03078957836 | H46: 0.02434442438
A47: Labour - unpaid (Imputed) | B47: 17.31911251 | C47: 15.15724054 | D47: 13.97977768 | F47: 0.2833206954 | G47: 0.2629553862 | H47: 0.2421124634
A48: Land Rent (Imputed) | B48: 14.54971597 | C48: 10.6972158 | D48: 6.636823837 | F48: 0.2380165637 | G48: 0.1855806473 | H48: 0.1149415824
A49: Non-Cash fixed costs | B49: 46.0925373 | C49: 35.39984863 | D49: 29.16884739 | F49: 0.754020722 | G49: 0.6141342707 | H49: 0.5051683694
A50: Full Investment fixed costs | B50: 86.71188373 | C50: 66.22090349 | D50: 55.66434615 | F50: 1.418506357 | G50: 1.148833338 | H50: 0.9640376461
A51: Full Investment Cost of Production | B51: 154.3474321 | C51: 113.1945038 | D51: 91.56620283 | F51: 2.524945881 | G51: 1.963754838 | H51: 1.585813411
A52: Full Investment Net Margin | B52: -54.57178097 | C52: -15.63439073 | D52: 9.452083885 | F52: -0.8927313638 | G52: -0.2712332262 | H52: 0.1636984053
A55: Physical Performance
A56: Ewe to ram ratio | B56: 45.42383286 | C56: 41.63972083 | D56: 34.78531892
A57: Scanning percentage per ewe scanned (%) | B57: 171.958931 | C57: 176.4040754 | D57: 180.2195962
A58: Lambs born alive per 100 ewes to ram | B58: 163.5091278 | C58: 156.2298127 | D58: 156.6935484
A59: Lambs born dead per 100 ewes to ram | B59: 7.123112907 | C59: 8.915692107 | D59: 9.274193548
A60: Lambs died in first 48 hours per 100 ewes to ram | B60: 7.301656495 | C60: 7.936988791 | D60: 6.115591398
A61: Lambs died after 48 hours per 100 ewes to ram | B61: 5.379544971 | C61: 6.362051236 | D61: 6.604623236
A62: Lambs weaned per 100 ewes to ram | B62: 152.0486815 | C62: 143.8319563 | D62: 145.6494148
A63: Lambs reared per 100 ewes to ram | B63: 151.5821501 | C63: 143.2978036 | D63: 144.6639785
A64: Lamb losses from birth to rearing (% of born alive) | B64: 7.29438035 | C64: 8.27755524 | D64: 7.677131583
A65: Empty ewes (%) | B65: 3.590263692 | C65: 4.517926357 | D65: 3.682795699
A66: Ewe mortality (%) | B66: 4.746450304 | C66: 3.565083979 | D66: 3.938172043
A67: Flock replacement rate (%) | B67: 21.52129817 | C67: 21.26130491 | D67: 21.88172043
A69: Average age at weaning (days) | B69: 103.63484 | C69: 115.4272453 | D69: 129.2400272
A70: Average weight at weaning (kg) | B70: 35.83193754 | C70: 34.928207 | D70: 34.28104963
A71: Average liveweight per reared lamb (all lambs) (kg per lamb) | B71: 40.32731165 | C71: 40.22523019 | D71: 39.91376663
A72: Average liveweight (kg lwt per lamb sold finished) | B72: 42.00081765 | C72: 42.2946324 | D72: 42.49409877
A73: Average carcase weight (kg dwt per lamb sold finished) | B73: 19.5087633 | C73: 19.65591706 | D73: 19.81879231
A74: Average store weight (kg lwt per lamb sold store) | B74: 34.24778761 | C74: 36.35341367 | D74: 35.62043796
A75: Average age at sale (days) | B75: 140.4390244 | C75: 160.4056247 | D75: 176.5605515
A76: Daily liveweight gain to sale (kg per day) | B76: 0.2722396845 | C76: 0.2412498779 | D76: 0.2167538959
A77: Lamb weight produced per forage hectare (kg) | B77: 422.9134111 | C77: 480.2991845 | D77: 436.5213022
A79: Return per lamb sold finished (£) | B79: 68.56368972 | C79: 68.8234603 | D79: 70.56970309
A80: Return per lamb sold store (£) | B80: 52.97345133 | C80: 54.26919176 | D80: 54.6193952
A82: Reared lambs sold finished (%) | B82: 65.26586262 | C82: 58.60290071 | D82: 49.76768214
A83: Reared lambs sold store (%) | B83: 2.594379908 | C83: 7.087784717 | D83: 11.84475583
A84: Reared lambs sold breeding (%) | B84: 0.02612851102 | C84: 3.696845386 | D84: 5.707601727
A85: Reared lambs valued at end (%) | B85: 32.11362896 | C85: 30.61246919 | D85: 32.6799603
A87: Total FW ewe concentrate use (kg per ewe) | B87: 63.34685572 | C87: 50.95163116 | D87: 33.31854829
A88: Total DM ewe concentrate use (kg per ewe) | B88: 54.99107483 | C88: 41.41871368 | D88: 26.29194884
A89: Average ewe concentrate cost (£ per tonne) | B89: 209.229292 | C89: 197.5427809 | D89: 208.8762416
A90: Total FW forage (kg per ewe) | B90: 309.0669371 | C90: 211.1809594 | D90: 77.82258059
A91: Total DM forage (kg per ewe) | B91: 103.658215 | C91: 62.62897696 | D91: 38.68655912
A92: Creep feed per lamb reared (kg per lamb) | B92: 21.97243414 | C92: 11.14256737 | D92: 8.551983596
A94: Number of full grazing weeks | B94: 44.20503353 | C94: 44.78356951 | D94: 46.013134
A95: Stocking rate (LU per ha) | B95: 0.804919062 | C95: 0.9691905885 | D95: 0.9260762311
A96: Inorganic nitrogen use (kg per ha) | B96: 52.5384658 | C96: 35.62717395 | D96: 22.09116151
A98: Labour use - paid hours per ewe | B98: 1.525984873 | C98: 1.043074073 | D98: 0.7287676195
A99: Labour use - unpaid hours per ewe | B99: 1.715764946 | C99: 1.526380386 | D99: 1.403217657

Sheet April-May
E1: AHDB Beef and Lamb
E2: Stocktake
E3: Costs of Production 2015/16
C5: Non-SDA April/May Lambing Flocks
B7: (£ per head output) | F7: (£ per lwt kg lamb output)
A8: Financial Performance (£ per ewe to ram) | B8: Bottom Third | C8: Average | D8: Top Third | F8: Bottom Third | G8: Average | H8: Top Third
A10: Number of flocks in sample | B10: 14 | C10: 43 | D10: 14 | F10: =B10 -> 14 | G10: 43 | H10: 14
A11: Average flock size | B11: 452.0714286 | C11: 836.1627907 | D11: 1392.571429 | F11: 452.0714286 | G11: 836.1627907 | H11: 1392.571429
A13: Lamb output | B13: 83.37066519 | C13: 87.18281326 | D13: 88.21258056 | F13: =(B13/(B$63/100))/B$71 -> 1.700071665 | G13: =(C13/(C$63/100))/C$71 -> 1.758342126 | H13: =(D13/(D$63/100))/D$71 -> 1.819655142
A14: Other income | B14: 2.706966345 | C14: 3.692565707 | D14: 4.422250718 | F14: =(B14/(B$63/100))/B$71 -> 0.05519971288 | G14: =(C14/(C$63/100))/C$71 -> 0.07447332327 | H14: =(D14/(D$63/100))/D$71 -> 0.09122249012
A15: Gross Output | B15: 86.07763154 | C15: 90.87537896 | D15: 92.63483128 | F15: 1.755271377 | G15: 1.832815449 | H15: 1.910877632
A16: Replacement costs | B16: 0.5211157781 | C16: 8.007844223 | D16: 9.455324138 | F16: 0.01062644956 | G16: 0.1615057981 | H16: 0.1950450727
A17: Output less replacement costs | B17: 85.55651576 | C17: 82.86753474 | D17: 83.17950714 | F17: 1.744644928 | G17: 1.671309651 | H17: 1.71583256
A19: Variable Costs
A20: Purchased feed including minerals | B20: 6.952731124 | C20: 3.563435117 | D20: 1.818767018 | F20: 0.14177818 | G20: 0.07186895955 | H20: 0.03751765038
A21: Home-grown feed | B21: 0.2607046927 | C21: 0.3409887359 | D21: 0.2615921215 | F21: 0.005316218359 | G21: 0.006877213941 | H21: 0.005396140164
A22: Purchased forage | B22: 1.295307316 | C22: 0.441607565 | D22: 0.02462043496 | F22: 0.02641355037 | G22: 0.008906539668 | H22: 0.0005078720154
A23: Home-grown forage (excludes contract) | B23: 10.65356207 | C23: 4.91259607 | D23: 3.460009038 | F23: 0.2172445062 | G23: 0.09907944345 | H23: 0.07137330297
A24: Total feed and forage | B24: 19.1623052 | C24: 9.258627488 | D24: 5.564988613 | F24: 0.3907524549 | G24: 0.1867321566 | H24: 0.1147949655
A25: Vet and medicine | B25: 10.8011708 | C25: 6.551911556 | D25: 4.762648748 | F25: 0.220254503 | G25: 0.1321418943 | H25: 0.09824424396
A26: Bedding | B26: 0.6777531996 | C26: 0.3685579196 | D26: 0.2885720148 | F26: 0.01382055676 | G26: 0.007433241618 | H26: 0.005952683248
A27: Other livestock expenses | B27: 8.558972982 | C27: 8.448264219 | D27: 8.265744255 | F27: 0.174532222 | G27: 0.1703883863 | H27: 0.1705063375
A28: Total variable costs | B28: 39.20020218 | C28: 24.62736118 | D28: 18.88195363 | F28: 0.7993597366 | G28: 0.4966956788 | H28: 0.3894982303
A30: Gross Margin | B30: 46.35631358 | C30: 58.24017356 | D30: 64.29755351 | F30: 0.9452851913 | G30: 1.174613972 | H30: 1.326334329
A32: Fixed Costs
A33: Labour - paid | B33: 19.62581043 | C33: 11.06775462 | D33: 8.08046271 | F33: 0.4002041262 | G33: 0.2232194449 | H33: 0.1666843372
A34: Machinery repairs and spares | B34: 3.736179754 | C34: 1.990192836 | D34: 1.427136985 | F34: 0.0761871495 | G34: 0.04013910279 | H34: 0.02943907928
A35: Contracting | B35: 3.549816282 | C35: 2.417552291 | D35: 1.953632705 | F35: 0.07238687688 | G35: 0.04875828017 | H35: 0.04029966898
A36: Electricity | B36: 0.1698530574 | C36: 0.1163676818 | D36: 0.113356586 | F36: 0.003463596809 | G36: 0.00234695566 | H36: 0.002338327404
A37: Fuel | B37: 5.144622684 | C37: 2.79558256 | D37: 2.118572477 | F37: 0.1049077302 | G37: 0.05638256439 | H37: 0.04370205788
A38: Property maintenance and water | B38: 1.5210348 | C38: 1.116696563 | D38: 0.7607309739 | F38: 0.03101652313 | G38: 0.02252203771 | H38: 0.01569241053
A39: Land Rent (Actual) | B39: 22.78939727 | C39: 8.848248436 | D39: 6.676065787 | F39: 0.4647151186 | G39: 0.1784554476 | H39: 0.1377143414
A40: Overheads | B40: 5.771959456 | C40: 3.659160712 | D40: 2.451930833 | F40: 0.117700209 | G40: 0.07379959633 | H40: 0.05057859685
A41: Cash Only fixed costs | B41: 62.30867374 | C41: 32.0115557 | D41: 23.58188906 | F41: 1.27058133 | G41: 0.6456234296 | H41: 0.4864488195
A42: Cash Only Cost of Production | B42: 102.0299917 | C42: 64.6467611 | D42: 51.91916683 | F42: 2.080567516 | G42: 1.303824906 | H42: 1.070992123
A43: Cash Only Net Margin | B43: -15.95236016 | C43: 26.22861786 | D43: 40.71566445 | F43: -0.325296139 | G43: 0.5289905426 | H43: 0.8398855097
A45: Depreciation | B45: 6.919646454 | C45: 4.968829542 | D45: 4.385479134 | F45: 0.1411035265 | G45: 0.1002135854 | H45: 0.09046396337
A46: Finance costs (Imputed) | B46: 1.23698278 | C46: 1.08850847 | D46: 1.141380265 | F46: 0.02522421249 | G46: 0.02195352759 | H46: 0.02354447014
A47: Labour - unpaid (Imputed) | B47: 16.24922319 | C47: 10.86089776 | D47: 8.708766773 | F47: 0.3313496883 | G47: 0.219047463 | H47: 0.1796450363
A48: Land Rent (Imputed) | B48: 8.007085529 | C48: 8.848248436 | D48: 6.162522265 | F48: 0.1632782849 | G48: 0.1784554476 | H48: 0.1271209306
A49: Non-Cash fixed costs | B49: 32.41293796 | C49: 25.76648421 | D49: 20.39814844 | F49: 0.6609557122 | G49: 0.5196700235 | H49: 0.4207744004
A50: Full Investment fixed costs | B50: 94.7216117 | C50: 57.77803991 | D50: 43.98003749 | F50: 1.931537042 | G50: 1.165293453 | H50: 0.9072232199
A51: Full Investment Cost of Production | B51: 134.4429297 | C51: 90.41324531 | D51: 72.31731526 | F51: 2.741523229 | G51: 1.82349493 | H51: 1.491766523
A52: Full Investment Net Margin | B52: -48.36529812 | C52: 0.4621336526 | D52: 20.31751602 | F52: -0.9862518512 | G52: 0.009320519018 | H52: 0.4191111093
A55: Physical Performance
A56: Ewe to ram ratio | B56: 42.35333532 | C56: 50.47142235 | D56: 54.30892804
A57: Scanning percentage per ewe scanned (%) | B57: 169.2512138 | C57: 165.1803397 | D57: 154.8556713
A58: Lambs born alive per 100 ewes to ram | B58: 150.1027018 | C58: 147.4926992 | D58: 142.1317193
A59: Lambs born dead per 100 ewes to ram | B59: 5.634314795 | C59: 8.27308751 | D59: 9.217275339
A60: Lambs died in first 48 hours per 100 ewes to ram | B60: 9.579684764 | C60: 7.549695278 | D60: 7.445263049
A61: Lambs died after 48 hours per 100 ewes to ram | B61: 5.938767982 | C61: 4.271612847 | D61: 3.995019197
A62: Lambs weaned per 100 ewes to ram | B62: 136.4512561 | C62: 136.2035878 | D62: 131.0832991
A63: Lambs reared per 100 ewes to ram | B63: 136.3722547 | C63: 136.0394938 | D63: 130.821707
A64: Lamb losses from birth to rearing (% of born alive) | B64: 9.147368421 | C64: 7.765269371 | D64: 7.957416095
A65: Empty ewes (%) | B65: 5.98830779 | C65: 6.839104436 | D65: 8.565859664
A66: Ewe mortality (%) | B66: 3.081055459 | C66: 3.078848561 | D66: 3.026261797
A67: Flock replacement rate (%) | B67: 19.02354242 | C67: 23.55444305 | D67: 25.54370127
A69: Average age at weaning (days) | B69: 120.1470588 | C69: 117.5359797 | D69: 112.2934732
A70: Average weight at weaning (kg) | B70: 32.63446706 | C70: 31.30983476 | D70: 30.75311881
A71: Average liveweight per reared lamb (all lambs) (kg per lamb) | B71: 35.96002763 | C71: 36.44705908 | D71: 37.05626354
A72: Average liveweight (kg lwt per lamb sold finished) | B72: 42.55571224 | C72: 41.35168338 | D72: 41.49299175
A73: Average carcase weight (kg dwt per lamb sold finished) | B73: 19.74118471 | C73: 19.07753258 | D73: 18.93281081
A74: Average store weight (kg lwt per lamb sold store) | B74: 30.88235266 | C74: 31.41562624 | D74: 30.68546664
A75: Average age at sale (days) | B75: 162.8954827 | C75: 162.7473812 | D75: 164.0259705
A76: Daily liveweight gain to sale (kg per day) | B76: 0.2141184462 | C76: 0.213722263 | D76: 0.2116246226
A77: Lamb weight produced per forage hectare (kg) | B77: 245.5343307 | C77: 351.1166427 | D77: 396.3984425
A79: Return per lamb sold finished (£) | B79: 68.26762694 | C79: 68.94422131 | D79: 68.90479587
A80: Return per lamb sold store (£) | B80: 50.55193 | C80: 49.01089588 | D80: 48.53946068
A82: Reared lambs sold finished (%) | B82: 30.40193414 | C82: 26.92856459 | D82: 26.81466223
A83: Reared lambs sold store (%) | B83: 20.96250671 | C83: 11.4164085 | D83: 9.383396039
A84: Reared lambs sold breeding (%) | B84: 4.121845301 | C84: 5.166816768 | D84: 7.479132864
A85: Reared lambs valued at end (%) | B85: 44.51371385 | C85: 56.48821015 | D85: 56.32280887
A87: Total FW ewe concentrate use (kg per ewe) | B87: 17.18423132 | C87: 21.78359061 | D87: 7.397414855
A88: Total DM ewe concentrate use (kg per ewe) | B88: 14.70399431 | C88: 12.98060027 | D88: 6.433442758
A89: Average ewe concentrate cost (£ per tonne) | B89: 231.1082599 | C89: 146.8322912 | D89: 208.6452642
A90: Total FW forage (kg per ewe) | B90: 499.0298624 | C90: 253.6159087 | D90: 195.5067706
A91: Total DM forage (kg per ewe) | B91: 104.1153425 | C91: 58.76289811 | D91: 47.49128026
A92: Creep feed per lamb reared (kg per lamb) | B92: 5.28617771 | C92: 1.526485795 | D92: 0.6737894476
A94: Number of full grazing weeks | B94: 47.13331876 | C94: 47.84818968 | D94: 48.76037501
A95: Stocking rate (LU per ha) | B95: 0.5719563449 | C95: 0.7801983138 | D95: 0.8766922439
A96: Inorganic nitrogen use (kg per ha) | B96: 40.84702118 | C96: 21.98655449 | D96: 15.11505144
A98: Labour use - paid hours per ewe | B98: 2.398473857 | C98: 1.170061789 | D98: 0.7721415501
A99: Labour use - unpaid hours per ewe | B99: 1.578852688 | C99: 1.210863191 | D99: 0.8875107258

Sheet Lamb finishing
E1: AHDB Beef and Lamb
E2: Stocktake
E3: Costs of Production 2015/16
D5: Lamb Finishing
B7: (£ per head output) | F7: (£ per kg carcase weight)
A8: Financial Performance (£ per head output) | B8: Bottom Third | C8: Average | D8: Top Third | F8: Bottom Third | G8: Average | H8: Top Third
A10: Number of flocks in sample | B10: 20 | C10: 61 | D10: 20 | F10: =B10 -> 20 | G10: 61 | H10: 20
A11: Average head of output | B11: 229.25 | C11: 576.8852459 | D11: 1022.2 | F11: 229.25 | G11: 576.8852459 | H11: 1022.2
A13: Lamb output | B13: 68.69802175 | C13: 73.93827427 | D13: 76.41430787 | F13: =B13/$B$61 -> 3.552193637 | G13: =C13/$C$61 -> 3.755000573 | H13: =D13/$D$61 -> 3.860398523
A14: Other income | B14: 0 | C14: 0.08735436203 | D14: 0.01956564273 | F14: =B14/$B$61 -> 0 | G14: =C14/$C$61 -> 0.004436344813 | H14: =D14/$D$61 -> 0.000988442877
A15: Gross Output | B15: 68.69802175 | C15: 74.02562863 | D15: 76.43387351 | F15: 3.552193637 | G15: 3.759436918 | H15: =D15/$D$61 -> 3.861386966
A16: Purchase costs | B16: 53.98669575 | C16: 54.39107417 | D16: 55.38661221 | F16: 2.791509744 | G16: 2.762284036 | H16: 2.798093733
A17: Output less purchase costs | B17: 14.71132601 | C17: 19.63455446 | D17: 21.0472613 | F17: 0.760683893 | G17: 0.9971528817 | H17: 1.063293233
A19: Variable Costs
A20: Purchased feed including minerals | B20: 2.673952886 | C20: 1.369566183 | D20: 0.4892129722 | F20: 0.138263056 | G20: 0.06955425798 | H20: 0.02471470446
A21: Home-grown feed | B21: 0.5949836423 | C21: 0.2661366893 | D21: 0.05263157895 | F21: 0.03076503594 | G21: 0.01351591488 | H21: 0.002658911339
A22: Purchased forage | B22: 0 | C22: 0 | D22: 0 | F22: 0 | G22: 0 | H22: 0
A23: Home-grown forage (excludes contract) | B23: 1.072005436 | C23: 1.695969517 | D23: 2.127208514 | F23: 0.0554305756 | G23: 0.08613085133 | H23: 0.1074651179
A24: Total feed and forage | B24: 4.340941964 | C24: 3.331672389 | D24: 2.669053065 | F24: 0.2244586675 | G24: 0.1692010242 | H24: 0.1348387337
A25: Vet and medicine | B25: 1.129402399 | C25: 0.8510301222 | D25: 0.5516552534 | F25: 0.05839842129 | G25: 0.04322008633 | H25: 0.02786924576
A26: Bedding | B26: 0.05452562704 | C26: 0.0365160557 | D26: 0.0207884954 | F26: 0.002819376461 | G26: 0.001854490268 | H26: 0.001050220557
A27: Other livestock expenses | B27: 4.035075245 | C27: 2.655411765 | D27: 2.28209548 | F27: 0.2086431057 | G27: 0.1348567139 | H27: 0.1152899014
A28: Total variable costs | B28: 9.559945236 | C28: 6.874630332 | D28: 5.523592294 | F28: 0.4943195709 | G28: 0.3491323147 | H28: 0.2790481015
A30: Gross Margin | B30: 5.15138077 | C30: 12.75992413 | D30: 15.523669 | F30: 0.2663643221 | G30: 0.648020567 | H30: 0.7842451313
A32: Fixed Costs
A33: Labour - paid | B33: 3.321510784 | C33: 1.232037249 | D33: 0.9659724933 | F33: 0.1717465681 | G33: 0.06256976679 | H33: 0.04880026909
A34: Machinery repairs and spares | B34: 1.410983667 | C34: 0.4935223129 | D34: 0.2618884744 | F34: 0.07295824648 | G34: 0.02506383313 | H34: 0.01323042645
A35: Contracting | B35: 0.704599872 | C35: 0.409380372 | D35: 0.2918033125 | F35: 0.03643300227 | G35: 0.02079063309 | H35: 0.01474170359
A36: Electricity | B36: 0.03075245365 | C36: 0.01909633419 | D36: 0.00816865584 | F36: 0.001590128324 | G36: 0.0009698190352 | H36: 0.0004126749011
A37: Fuel | B37: 1.570380951 | C37: 0.7934568256 | D37: 0.5685737968 | F37: 0.08120025992 | G37: 0.04029619118 | H37: 0.02872395899
A38: Property maintenance and water | B38: 1.557178742 | C38: 0.7874606006 | D38: 0.3918045362 | F38: 0.08051760848 | G38: =C38/$C$61 -> 0.03999166922 | H38: 0.01979369696
A39: Land Rent (Actual) | B39: 2.124956086 | C39: 1.08844907 | D39: 0.7911892302 | F39: 0.1098758784 | G39: 0.05527755309 | H39: 0.03997033829
A40: Overheads | B40: 3.880399962 | C40: 2.61841451 | D40: 2.044622597 | F40: 0.2006452544 | G40: 0.1329777856 | H40: 0.1032929339
A41: Cash Only fixed costs | B41: 14.60076252 | C41: 7.441817274 | D41: 5.324023096 | F41: 0.7549669465 | G41: 0.3779372511 | H41: 0.2689660022
A42: Cash Only Cost of Production (inc purchase costs) | B42: 78.1474035 | C42: 68.70752177 | D42: 66.2342276 | F42: 4.040796261 | G42: 3.489353602 | H42: 3.346107837
A43: Cash Only Net Margin | B43: -9.449381747 | C43: 5.318106854 | D43: 10.19964591 | F43: -0.4886026244 | G43: 0.2700833159 | H43: 0.5152791291
A45: Depreciation | B45: 3.504585336 | C45: 1.506088025 | D45: 1.099213336 | F45: 0.1812128707 | G45: 0.07648760339 | H45: 0.05553150526
A46: Finance costs (Imputed) | B46: 0.8565693189 | C46: 0.6314391499 | D46: 0.5990307279 | F46: 0.04429094182 | G46: 0.03206802422 | H46: 0.0302626223
A47: Labour - unpaid (Imputed) | B47: 4.433866991 | C47: 1.70133592 | D47: 0.9346166977 | F47: 0.2292635758 | G47: 0.08640338738 | H47: 0.04721619577
A48: Land Rent (Inputed) | B48: 1.961497925 | C48: 1.330326641 | D48: 1.290887691 | F48: 0.1014238878 | G48: 0.06756145378 | H48: 0.06521476248
A49: Non-Cash fixed costs | B49: 10.75651957 | C49: 5.169189736 | D49: 3.923748453 | F49: 0.556191276 | G49: 0.2625204688 | H49: 0.1982250858
A50: Full Investment fixed costs | B50: 25.35728209 | C50: 12.61100701 | D50: 9.247771549 | F50: 1.311158223 | G50: 0.6404577199 | H50: 0.467191088
A51: Full Investment Cost of Production | B51: 88.90392307 | C51: 73.87671151 | D51: 70.15797605 | F51: 4.596987538 | G51: 3.751874071 | H51: 3.544332923
A52: Full Investment Net Margin | B52: -20.20590132 | C52: 0.1489171187 | D52: 6.275897456 | F52: -1.0447939 | G52: 0.00756284714 | H52: 0.3170540432
A55: Physical Performance
A56: Mortality % | B56: 1.103699717 | C56: 1.355906511 | D56: 1.143807592
A57: Feeding period (days) | B57: 99.52693473 | C57: 94.97081567 | D57: 90.56393136
A58: Average liveweight at start (kg) | B58: 34.67601583 | C58: 33.82857698 | D58: 33.64692425
A59: Average liveweight at sale (kg) | B59: 41.22050156 | C59: 42.34266136 | D59: 42.81089818
A60: Daily liveweight gain (kg per day) | B60: 0.07404503964 | C60: 0.09857818396 | D60: 0.1060158317
A61: Average carcase weight (kg) | B61: 19.33960498 | C61: 19.69061597 | D61: 19.79440915
A63: Purchase value per lamb (£) | B63: 53.40401628 | C63: 53.686038 | D63: 54.79888367
A64: Return per lamb (£) | B64: 68.69802175 | C64: 73.93827427 | D64: 76.41430787
A65: Liveweight price all lambs (£ per kg lwt) | B65: 1.669753913 | C65: 1.746410113 | D65: 1.784646846
A66: Return per kg deadweight: finished lambs (£ per kg dwt) | B66: 3.567499936 | C66: 3.771481554 | D66: 3.867083337
A68: Lambs sold finished (%) | B68: 95.15812432 | C68: 96.28019324 | D68: 97.21678732
A69: Lambs sold or retained breeding (%) | B69: 4.841875682 | C69: 3.719806763 | D69: 2.783212679
A71: Total FW concentrate use (kg per lamb) | B71: 20.37622686 | C71: 9.094202898 | D71: 3.189199765
A72: Average concentrate cost (£ per tonne) | B72: 160.581397 | C72: 179.3595098 | D72: 167.2142637
A73: Inorganic nitrogen use (kg per ha) | B73: 14.00400669 | C73: 22.99252246 | D73: 11.24502164
A75: Labour use - paid hours per lamb | B75: 0.3176771724 | C75: 0.1185369411 | D75: 0.09197324056
A76: Labour use - unpaid hours per lamb | B76: 0.4426946781 | C76: 0.1894989288 | D76: 0.09609695216
